bitfinex-derivatives/quotes_BTCF0:USTF0_20250429
["timestamp","ask_amount","ask_price","bid_price","bid_amount"]
[1745901869002,0.59099344,94556.0,94555.0,0.1908]
[1745901869310,0.5909157,94556.0,94555.0,0.1908]
[1745901869501,0.5909157,94556.0,94555.0,0.2708]
[1745901869702,0.2301157,94556.0,94555.0,0.2708]
[1745901869904,0.5909157,94556.0,94555.0,0.2708]
[1745901870405,0.59103695,94556.0,94555.0,0.2708]
[1745901870610,0.5909157,94556.0,94555.0,0.2708]
[1745901872410,0.1903157,94556.0,94555.0,0.2708]
[1745901872607,0.1903157,94556.0,94555.0,0.9276738]
[1745901872915,0.1902614,94585.0,94584.0,0.2378198]
[1745901873099,0.1902614,94585.0,94584.0,0.3502554]
[1745901873609,0.1902545,94587.0,94586.0,0.2378148]
[1745901873804,0.1902545,94587.0,94586.0,0.3978148]
[1745901874198,0.1902545,94587.0,94586.0,0.5178148]
[1745901875007,0.1932545,94587.0,94586.0,0.5178148]
[1745901875207,0.1952545,94587.0,94586.0,0.5178148]
[1745901875612,0.1952545,94587.0,94561.0,0.0475761]
[1745901875613,0.3658,94587.0,94561.0,0.0475761]
[1745901875810,0.1903037,94563.0,94562.0,0.190303]
[1745901876012,0.1903037,94563.0,94562.0,0.320303]
[1745901876208,0.4083678,94579.0,94563.0,0.047575]
[1745901876401,0.4083678,94579.0,94578.0,0.1902715]
[1745901876402,0.1902788,94579.0,94578.0,0.1902715]
[1745901876608,0.1902788,94579.0,94578.0,0.3502715]
[1745901877206,0.1902788,94579.0,94578.0,0.4702715]
[1745901878214,0.1902788,94579.0,94578.0,0.4722715]
[1745901878409,0.1902617,94583.0,94582.0,0.2378249]
[1745901878615,0.1902617,94583.0,94582.0,0.3778249]
[1745901878812,0.1902617,94583.0,94582.0,0.4835529]
[1745901879003,0.1902617,94583.0,94582.0,0.3778249]
[1745901879209,0.3608,94587.0,94584.0,0.0475644]
[1745901879415,0.5986189,94587.0,94586.0,0.1902554]
[1745901879719,0.5986189,94587.0,94586.0,0.3502554]
[1745901880220,0.5986189,94587.0,94586.0,0.4702554]
[1745901880810,0.5986189,94587.0,94586.0,0.5090554]
[1745901881620,0.59872083,94587.0,94586.0,0.5090554]
[1745901881914,0.5986189,94587.0,94586.0,0.4722554]
[1745901882117,0.1902634,94582.0,94581.0,0.0381]
[1745901882815,0.1902715,94578.0,94577.0,0.0793]
[1745901883007,0.5510715,94578.0,94577.0,0.0793]
[1745901883207,0.5510715,94578.0,94577.0,0.1993]
[1745901884215,0.5510715,94578.0,94577.0,0.2023]
[1745901884609,0.5510715,94578.0,94577.0,0.2063]
[1745901886117,0.55119275,94578.0,94577.0,0.2063]
[1745901886322,0.5510715,94578.0,94577.0,0.2063]
[1745901886919,0.55116902,94578.0,94577.0,0.2063]
[1745901887108,0.55115524,94578.0,94577.0,0.2063]
[1745901887315,0.5510715,94578.0,94577.0,0.2063]
[1745901888019,0.1902835,94572.0,94571.0,0.0375]
[1745901889118,0.1902835,94572.0,94571.0,0.1575]
[1745901889823,0.1902835,94572.0,94571.0,0.1615]
[1745901890815,0.19039946,94572.0,94571.0,0.1615]
[1745901891010,0.19038222,94572.0,94571.0,0.1655]
[1745901891219,0.19040018,94572.0,94571.0,0.1655]
[1745901891414,0.1903877,94572.0,94571.0,0.1655]
[1745901891612,0.1902835,94572.0,94571.0,0.1655]
[1745901892018,0.1903942,94572.0,94571.0,0.1655]
[1745901892219,0.19037386,94572.0,94571.0,0.1655]
[1745901892417,0.1902835,94572.0,94571.0,0.1655]
[1745901897121,0.2361835,94572.0,94571.0,0.1655]
[1745901899625,0.23629109,94572.0,94571.0,0.3557856]
[1745901899830,0.2361835,94572.0,94571.0,0.3557856]
[1745901902931,0.2361835,94572.0,94571.0,0.1655]
[1745901903721,0.2361835,94572.0,94537.0,0.16175935]
[1745901903722,0.190348,94540.0,94537.0,0.16175935]
[1745901904023,0.551148,94540.0,94539.0,0.34035]
[1745901904231,0.190348,94540.0,94539.0,0.566126]
[1745901904623,0.0475845,94545.0,94544.0,0.1903359]
[1745901904818,0.0475845,94545.0,94544.0,0.3829359]
[1745901905022,0.0475845,94545.0,94544.0,0.4729359]
[1745901905321,0.4083845,94545.0,94544.0,0.5929359]
[1745901905522,0.4083845,94545.0,94544.0,0.60079981]
[1745901905921,0.5997224,94545.0,94544.0,0.65638441]
[1745901906531,0.59980315,94545.0,94544.0,0.65638441]
[1745901906723,0.5997224,94545.0,94544.0,0.65638441]
[1745901906924,0.5987224,94545.0,94544.0,0.65038441]
[1745901907723,0.5987224,94545.0,94544.0,0.65138441]
[1745901908638,0.5987224,94545.0,94544.0,0.60379981]
[1745901909030,0.59882116,94545.0,94544.0,0.60379981]
[1745901909239,0.5987224,94545.0,94544.0,0.60379981]
[1745901916040,0.59881109,94545.0,94544.0,0.60379981]
[1745901916252,0.5987224,94545.0,94544.0,0.60379981]
[1745901916454,0.1903379,94545.0,94544.0,0.60379981]
[1745901916755,0.1903347,94547.0,94546.0,0.1903339]
[1745901916947,0.1903347,94547.0,94546.0,0.3403339]
[1745901917147,0.1903347,94547.0,94546.0,0.5486339]
[1745901917953,0.1903347,94547.0,94546.0,0.5526339]
[1745901919257,0.0422,94553.0,94550.0,0.0475815]
[1745901919457,0.0422,94553.0,94551.0,0.0897]
[1745901919659,0.1903238,94552.0,94551.0,0.4400238]
[1745901920157,0.1903238,94552.0,94551.0,0.5600238]
[1745901920951,0.19040087,94552.0,94551.0,0.5610238]
[1745901921162,0.2325231,94553.0,94552.0,0.1903238]
[1745901921454,0.2325231,94553.0,94552.0,0.4270238]
[1745901921645,0.08031887,94556.0,94555.0,0.1903178]
[1745901921844,0.08031887,94556.0,94555.0,0.3403178]
[1745901922052,0.08031887,94556.0,94555.0,0.5660738]
[1745901922259,0.08031887,94561.0,94560.0,0.1903077]
[1745901922459,0.27062457,94561.0,94560.0,0.3403077]
[1745901922673,0.27062457,94561.0,94560.0,0.4460597]
[1745901922854,0.27062457,94561.0,94560.0,0.5327597]
[1745901923048,0.27062457,94561.0,94560.0,0.6527597]
[1745901923453,0.08031887,94561.0,94560.0,0.6527597]
[1745901923861,0.27062457,94561.0,94560.0,0.6527597]
[1745901924161,0.31572457,94561.0,94560.0,0.6527597]
[1745901924361,0.31572457,94561.0,94560.0,0.6537597]
[1745901924562,0.31572457,94561.0,94560.0,0.5480077]
[1745901925061,0.31582033,94561.0,94560.0,0.5480077]
[1745901925264,0.31572457,94561.0,94560.0,0.5480077]
[1745901925963,0.31672457,94561.0,94560.0,0.5480077]
[1745901926259,0.23652221,94561.0,94560.0,0.5480077]
[1745901926449,0.23648866,94561.0,94560.0,0.5480077]
[1745901926656,0.2364057,94561.0,94560.0,0.4613077]
[1745901926856,0.2364057,94561.0,94560.0,0.271]
[1745901927363,0.2364057,94561.0,94560.0,0.27]
[1745901927762,0.5972057,94561.0,94560.0,0.27]
[1745901927960,0.5972057,94561.0,94560.0,0.12]
[1745901928762,0.5972057,94561.0,94560.0,0.3103077]
[1745901929360,0.5972057,94561.0,94560.0,0.4403077]
[1745901929561,0.5972057,94561.0,94560.0,0.4303077]
[1745901929956,0.5972057,94561.0,94560.0,0.5189077]
[1745901929957,0.2364057,94561.0,94560.0,0.5189077]
[1745901930457,0.1913057,94561.0,94560.0,0.5189077]
[1745901930960,0.19139881,94561.0,94560.0,0.5189077]
[1745901931160,0.19142695,94561.0,94560.0,0.5189077]
[1745901931551,0.1913057,94561.0,94560.0,0.5189077]
[1745901935660,0.19141269,94561.0,94560.0,0.5189077]
[1745901935861,0.19140966,94561.0,94560.0,0.5189077]
[1745901936063,0.19139567,94561.0,94560.0,0.5189077]
[1745901936363,0.1913057,94561.0,94560.0,0.5189077]
[1745901937863,0.2354057,94561.0,94560.0,0.5189077]
[1745901938063,0.2354057,94561.0,94560.0,0.4313077]
[1745901938465,0.2344057,94561.0,94560.0,0.4303077]
[1745901938666,0.2344057,94561.0,94560.0,0.4323077]
[1745901939267,0.2344057,94561.0,94560.0,0.4313077]
[1745901939969,0.2344057,94561.0,94560.0,0.4303077]
[1745901940170,0.2354057,94561.0,94560.0,0.4303077]
[1745901940572,0.2344057,94561.0,94560.0,0.4303077]
[1745901940767,0.23649998,94561.0,94560.0,0.4303077]
[1745901940966,0.23652695,94561.0,94560.0,0.4303077]
[1745901941170,0.2354057,94561.0,94560.0,0.4303077]
[1745901941472,0.2818057,94561.0,94560.0,0.4303077]
[1745901941672,0.2808057,94561.0,94560.0,0.4303077]
[1745901941869,0.2818057,94561.0,94560.0,0.4303077]
[1745901942063,0.2808057,94561.0,94560.0,0.4303077]
[1745901942263,0.2818057,94561.0,94560.0,0.4303077]
[1745901943172,0.2818057,94561.0,94560.0,0.24]
[1745901943173,0.2808057,94561.0,94560.0,0.24]
[1745901943374,0.2818057,94561.0,94560.0,0.24]
[1745901944279,0.2808057,94561.0,94560.0,0.24]
[1745901944471,0.28189847,94561.0,94560.0,0.24]
[1745901944671,0.28188153,94561.0,94560.0,0.24]
[1745901944983,0.2818057,94561.0,94560.0,0.4303077]
[1745901945271,0.2818057,94561.0,94511.0,0.3234266]
[1745901945272,0.3608,94516.0,94511.0,0.3234266]
[1745901945571,0.1904265,94501.0,94500.0,0.0596627]
[1745901945777,0.5512265,94501.0,94500.0,0.0596627]
[1745901946163,0.55759534,94501.0,94500.0,0.0596627]
[1745901946769,0.5512265,94501.0,94500.0,0.1696627]
[1745901946963,0.5512265,94501.0,94500.0,0.3600912]
[1745901947164,0.5512265,94501.0,94500.0,0.4800912]
[1745901947865,0.5512265,94501.0,94500.0,0.2896627]
[1745901948774,0.5512265,94501.0,94500.0,0.4800912]
[1745901951672,0.9643265,94501.0,94500.0,0.4800912]
[1745901954174,0.9643265,94501.0,94500.0,0.7900912]
[1745901954471,0.6035265,94501.0,94500.0,0.7900912]
[1745901955269,0.6035265,94501.0,94500.0,0.4800912]
[1745901955470,0.60363151,94501.0,94500.0,0.7900912]
[1745901955677,0.6035265,94501.0,94500.0,0.2896627]
[1745901955876,0.6035265,94501.0,94500.0,0.4800912]
[1745901959979,0.60360758,94501.0,94500.0,0.4800912]
[1745901960279,0.6035265,94501.0,94500.0,0.4800912]
[1745901961074,0.6035265,94501.0,94500.0,0.2896627]
[1745901961382,0.6035265,94501.0,94500.0,0.4800912]
[1745901964681,0.60364775,94501.0,94500.0,0.4800912]
[1745901964880,0.60364308,94501.0,94500.0,0.4800912]
[1745901965181,0.6035265,94501.0,94500.0,0.4800912]
[1745901965776,0.6035265,94501.0,94500.0,0.34516447]
[1745901968784,0.60362936,94501.0,94500.0,0.34516447]
[1745901968984,0.6035265,94501.0,94500.0,0.34516447]
[1745901969188,0.6036058,94501.0,94500.0,0.34516447]
[1745901969483,0.6035265,94501.0,94500.0,0.34516447]
[1745901970382,0.60363396,94501.0,94500.0,0.34516447]
[1745901970585,0.6035265,94501.0,94500.0,0.34516447]
[1745901970791,0.60360122,94501.0,94500.0,0.34516447]
[1745901970980,0.60361483,94501.0,94500.0,0.34516447]
[1745901971179,0.6035265,94501.0,94500.0,0.34516447]
[1745901974089,0.6035265,94501.0,94500.0,0.65516447]
[1745901976779,0.4131,94501.0,94500.0,0.65516447]
[1745901976981,0.6035265,94501.0,94500.0,0.65516447]
[1745901980194,0.60364775,94501.0,94500.0,0.65516447]
[1745901980592,0.60360732,94501.0,94500.0,0.65516447]
[1745901980781,0.60364775,94501.0,94500.0,0.65516447]
[1745901980981,0.6035265,94501.0,94500.0,0.65516447]
[1745901987599,0.6035265,94501.0,94500.0,0.34516447]
[1745901990390,0.60364775,94501.0,94500.0,0.34516447]
[1745901990590,0.6035265,94501.0,94500.0,0.34516447]
[1745901998604,0.60360853,94501.0,94500.0,0.34516447]
[1745901998801,0.60364083,94501.0,94500.0,0.34516447]
[1745901998998,0.60364775,94501.0,94500.0,0.34516447]
[1745901999189,0.6035265,94501.0,94500.0,0.34516447]
[1745901999391,0.60363496,94501.0,94500.0,0.34516447]
[1745901999590,0.6035265,94501.0,94500.0,0.34516447]
[1745902003007,0.4131,94501.0,94500.0,0.34516447]
[1745902003903,0.41320276,94501.0,94500.0,0.34516447]
[1745902004094,0.4131,94501.0,94500.0,0.34516447]
[1745902004805,0.6035265,94501.0,94500.0,0.34516447]
[1745902008008,0.60364775,94501.0,94500.0,0.34516447]
[1745902008210,0.6035265,94501.0,94500.0,0.34516447]
[1745902009211,0.71115965,94501.0,94500.0,0.34516447]
[1745902012120,0.7112809,94501.0,94500.0,0.34516447]
[1745902012319,0.71115965,94501.0,94500.0,0.34516447]
[1745902013216,0.6035265,94501.0,94500.0,0.34516447]
[1745902015826,0.60364224,94501.0,94500.0,0.34516447]
[1745902016024,0.60362707,94501.0,94500.0,0.34516447]
[1745902016324,0.6035265,94501.0,94500.0,0.34516447]
[1745902020329,0.60364775,94501.0,94500.0,0.34516447]
[1745902020628,0.6035265,94501.0,94500.0,0.34516447]
[1745902021529,0.60360618,94501.0,94500.0,0.34516447]
[1745902021725,0.6035265,94501.0,94500.0,0.34516447]
[1745902023332,0.3396,94501.0,94500.0,1.12178447]
[1745902023531,0.44723315,94501.0,94500.0,1.12178447]
[1745902023923,0.44723315,94501.0,94500.0,0.76098447]
[1745902024133,0.63765965,94501.0,94500.0,0.15473597]
[1745902024431,0.63765965,94501.0,94500.0,0.34516447]
[1745902024631,0.63765965,94501.0,94500.0,0.15473597]
[1745902024826,0.63765965,94501.0,94500.0,0.34516447]
[1745902026828,0.53014775,94501.0,94500.0,0.34516447]
[1745902027025,0.5300265,94501.0,94500.0,0.34516447]
[1745902030330,0.53014775,94501.0,94500.0,0.34516447]
[1745902030522,0.5300265,94501.0,94500.0,0.34516447]
[1745902032234,0.3396,94501.0,94481.0,0.01]
[1745902032537,0.5512648,94482.0,94481.0,0.58826817]
[1745902033234,0.5512648,94482.0,94481.0,0.70826817]
[1745902033736,0.5512648,94482.0,94481.0,0.71326817]
[1745902033925,0.5522648,94482.0,94481.0,0.71326817]
[1745902034128,0.5522648,94482.0,94481.0,0.21280137]
[1745902034936,0.5522648,94482.0,94481.0,0.21780137]
[1745902035631,0.5522648,94482.0,94481.0,0.40826817]
[1745902035838,0.5522648,94482.0,94481.0,0.40626817]
[1745902036225,0.5522648,94482.0,94481.0,0.40526817]
[1745902037531,0.5522648,94482.0,94481.0,0.21480137]
[1745902037726,0.5522648,94482.0,94481.0,0.30620137]
[1745902037925,0.5522648,94482.0,94481.0,0.49666817]
[1745902038527,0.55238605,94482.0,94481.0,0.49666817]
[1745902038745,0.5522648,94482.0,94481.0,0.49666817]
[1745902038936,0.55238399,94482.0,94481.0,0.49666817]
[1745902039136,0.5523802,94482.0,94481.0,0.49666817]
[1745902039330,0.55234383,94482.0,94481.0,0.49666817]
[1745902039536,0.5522648,94482.0,94481.0,0.49666817]
[1745902039937,0.001,94482.0,94481.0,0.80666817]
[1745902040128,0.00083891,94482.0,94481.0,0.80666817]
[1745902040334,0.3396,94485.0,94484.0,0.1904608]
[1745902040540,0.3396,94485.0,94484.0,0.3404608]
[1745902040843,0.3396,94485.0,94484.0,0.7562968]
[1745902041045,0.3396,94485.0,94484.0,0.6504608]
[1745902041240,0.3396,94485.0,94484.0,0.7704608]
[1745902041633,0.3396,94485.0,94484.0,0.7724608]
[1745902042245,0.10745838,94490.0,94489.0,0.1904507]
[1745902042441,0.10745838,94490.0,94489.0,0.6812507]
[1745902042638,0.10745838,94490.0,94489.0,0.9912507]
[1745902043341,0.10745838,94490.0,94489.0,1.1112507]
[1745902043744,0.10745838,94490.0,94489.0,1.1132507]
[1745902043944,0.10745838,94490.0,94489.0,1.2640827]
[1745902044160,0.1341638,94500.0,94489.0,1.073632]
[1745902044347,0.1904116,94509.0,94508.0,0.1904104]
[1745902044645,0.1904116,94509.0,94505.0,0.0476042]
[1745902044646,0.1904487,94490.0,94489.0,0.123]
[1745902044945,0.1904487,94490.0,94489.0,0.3910598]
[1745902045645,0.1904443,94493.0,94492.0,0.1904406]
[1745902045843,0.1904443,94493.0,94492.0,0.3004406]
[1745902046043,0.1904443,94493.0,94492.0,0.4204406]
[1745902046542,0.1904443,94493.0,94492.0,0.4680514]
[1745902046743,0.1904443,94493.0,94492.0,0.4700514]
[1745902047942,0.19054369,94493.0,94492.0,0.4700514]
[1745902048148,0.1904443,94493.0,94492.0,0.4700514]
[1745902048542,0.08054142,94494.0,94493.0,0.1904426]
[1745902048743,0.08064133,94494.0,94493.0,0.3304426]
[1745902048950,0.08063091,94494.0,94493.0,0.3304426]
[1745902049251,0.27098202,94494.0,94493.0,0.4504426]
[1745902050057,0.27098202,94494.0,94493.0,0.4514426]
[1745902051038,0.08054142,94494.0,94493.0,0.4514426]
[1745902051246,0.1904406,94494.0,94493.0,0.4514426]
[1745902053852,0.3608,94495.0,94494.0,0.1904406]
[1745902054152,0.5512386,94495.0,94494.0,0.4404406]
[1745902054840,0.55131936,94495.0,94494.0,0.4404406]
[1745902055039,0.5513258,94495.0,94494.0,0.4855406]
[1745902055252,0.5512386,94495.0,94494.0,0.4865406]
[1745902055447,0.5522386,94495.0,94494.0,0.4865406]
[1745902056053,0.1914386,94495.0,94494.0,0.4865406]
[1745902058943,0.1914386,94495.0,94494.0,0.3565406]
[1745902059149,0.19151643,94495.0,94494.0,0.3565406]
[1745902059348,0.1914386,94495.0,94494.0,0.3565406]
[1745902059953,0.1914386,94495.0,94494.0,0.4765406]
[1745902061460,0.1914386,94495.0,94494.0,0.3565406]
[1745902063049,0.19155037,94495.0,94494.0,0.3565406]
[1745902063249,0.1914386,94495.0,94494.0,0.3114406]
[1745902063557,0.2391386,94495.0,94494.0,0.3548406]
[1745902067054,0.1914386,94495.0,94494.0,0.3548406]
[1745902067257,0.1914386,94495.0,94494.0,0.4748406]
[1745902068153,0.19153472,94495.0,94494.0,0.4748406]
[1745902068465,0.1914386,94495.0,94494.0,0.4748406]
[1745902075967,0.001,94495.0,94494.0,0.4748406]
[1745902076167,0.00112125,94495.0,94494.0,0.4748406]
[1745902076354,0.001,94495.0,94494.0,0.4748406]
[1745902076757,0.1914386,94495.0,94494.0,0.4748406]
[1745902077065,0.001,94495.0,94494.0,0.4748406]
[1745902078763,0.1914386,94495.0,94494.0,0.4748406]
[1745902079060,0.001,94495.0,94494.0,0.4748406]
[1745902079257,0.1914386,94495.0,94494.0,0.4314406]
[1745902079468,0.2833386,94495.0,94494.0,0.4314406]
[1745902081263,0.28341576,94495.0,94494.0,0.4314406]
[1745902081463,0.2833386,94495.0,94494.0,0.4314406]
[1745902085468,0.2385386,94495.0,94494.0,0.4314406]
[1745902086158,0.23864469,94495.0,94494.0,0.4314406]
[1745902086361,0.2386201,94495.0,94494.0,0.4314406]
[1745902086562,0.2385386,94495.0,94494.0,0.4314406]
[1745902089072,0.23865985,94495.0,94494.0,0.4314406]
[1745902089281,0.2385386,94495.0,94494.0,0.4314406]
[1745902090070,0.23865444,94495.0,94494.0,0.4314406]
[1745902090273,0.23865257,94495.0,94494.0,0.4314406]
[1745902090468,0.2385386,94495.0,94494.0,0.4314406]
[1745902092367,0.2385386,94495.0,94494.0,0.241]
[1745902093271,0.2385386,94495.0,94494.0,0.121]
[1745902094278,0.1904426,94493.0,94492.0,0.05]
[1745902094578,0.5512426,94493.0,94492.0,0.05]
[1745902094878,0.466628,94493.0,94473.0,0.0493206]
[1745902095072,0.1904527,94488.0,94487.0,0.0498]
[1745902095267,0.3542165,94488.0,94487.0,0.0498]
[1745902095474,0.4556165,94488.0,94487.0,0.0498]
[1745902096175,0.45569556,94488.0,94487.0,0.1698]
[1745902096377,0.4556165,94488.0,94487.0,0.1698]
[1745902096769,0.4556165,94488.0,94487.0,0.2169]
[1745902097568,0.5614525,94488.0,94487.0,0.1728]
[1745902098272,0.5614525,94488.0,94487.0,0.1928]
[1745902098672,0.56155829,94488.0,94487.0,0.1928]
[1745902098869,0.5614525,94488.0,94487.0,0.1928]
[1745902099870,0.0476154,94484.0,94475.0,0.24063228]
[1745902100075,0.1904769,94476.0,94475.0,0.5460247]
[1745902100276,0.19059396,94476.0,94475.0,0.5460247]
[1745902100480,0.23809815,94476.0,94475.0,0.4969247]
[1745902100681,0.1905374,94446.0,94435.0,0.0499]
[1745902101177,0.1905374,94446.0,94445.0,0.12105881]
[1745902101672,0.5523374,94446.0,94445.0,0.14006987]
[1745902101868,0.6527374,94446.0,94445.0,0.14006987]
[1745902102177,0.6527374,94446.0,94445.0,0.13205881]
[1745902102367,0.6527374,94446.0,94445.0,0.13505881]
[1745902103877,0.6517374,94446.0,94445.0,0.12505881]
[1745902104278,0.6517374,94446.0,94434.0,0.26968434]
[1745902104279,0.0476381,94439.0,94434.0,0.26968434]
[1745902104471,0.1905757,94427.0,94426.0,0.32867228]
[1745902104672,0.5513757,94427.0,94426.0,0.46867228]
[1745902105183,0.0476421,94431.0,94426.0,0.46867228]
[1745902105184,0.5513637,94435.0,94434.0,0.1905616]
[1745902105380,0.5513637,94435.0,94434.0,0.1945616]
[1745902105578,0.55958345,94435.0,94434.0,0.1945616]
[1745902105980,0.55958345,94435.0,94434.0,0.2205616]
[1745902106183,0.55958345,94435.0,94434.0,0.3105616]
[1745902106881,0.56058345,94435.0,94434.0,0.3105616]
[1745902107070,0.56058345,94435.0,94434.0,0.12]
[1745902107977,0.60898345,94435.0,94434.0,0.12]
[1745902108176,0.56258345,94435.0,94434.0,0.121]
[1745902108377,0.56258345,94435.0,94434.0,0.3115616]
[1745902108576,0.37201975,94435.0,94434.0,0.3115616]
[1745902108776,0.003,94435.0,94434.0,0.3915616]
[1745902108981,0.00848257,94446.0,94444.0,0.1905414]
[1745902109286,0.00848257,94446.0,94444.0,0.3205414]
[1745902109480,0.08192692,94450.0,94444.0,0.3205414]
[1745902109675,0.08192692,94450.0,94447.0,0.0476335]
[1745902109981,0.00292692,94450.0,94449.0,0.1905313]
[1745902110187,0.00292692,94450.0,94449.0,0.5607313]
[1745902110373,0.00292692,94450.0,94449.0,0.9166073]
[1745902110976,0.00692692,94450.0,94449.0,0.9166073]
[1745902111578,0.00692692,94450.0,94449.0,0.6666073]
[1745902111877,0.00692692,94450.0,94449.0,0.5607313]
[1745902112585,0.00992692,94450.0,94449.0,0.5617313]
[1745902112782,0.20045622,94450.0,94449.0,0.3712]
[1745902112976,0.1975293,94450.0,94449.0,0.3712]
[1745902113179,0.1935293,94450.0,94449.0,0.5617313]
[1745902113381,0.1975293,94450.0,94449.0,0.5627313]
[1745902114073,0.1637638,94451.0,94450.0,0.1905293]
[1745902114280,0.3542911,94451.0,94450.0,0.4525293]
[1745902114481,0.3542911,94451.0,94450.0,0.5039293]
[1745902115287,0.3542911,94451.0,94450.0,0.6239293]
[1745902116186,0.35441235,94451.0,94450.0,0.6239293]
[1745902116383,0.3542911,94451.0,94450.0,0.6239293]
[1745902116883,0.3552911,94451.0,94450.0,0.6239293]
[1745902118383,0.1647638,94451.0,94450.0,0.9847293]
[1745902118779,0.001,94451.0,94450.0,0.9847293]
[1745902118981,0.1637638,94472.0,94471.0,0.190487]
[1745902119179,0.1637638,94472.0,94471.0,0.450487]
[1745902119580,0.1637638,94472.0,94471.0,0.310487]
[1745902119787,0.1637638,94481.0,94475.0,0.1904789]
[1745902119984,0.1637638,94481.0,94475.0,0.3504789]
[1745902120186,0.1637638,94481.0,94475.0,0.4704789]
[1745902120579,0.1637638,94481.0,94475.0,0.5219789]
[1745902121584,0.2113808,94481.0,94475.0,0.5219789]
[1745902121983,0.1974769,94476.0,94475.0,0.5229789]
[1745902122392,0.1974769,94476.0,94475.0,0.3629789]
[1745902122585,0.2024769,94476.0,94475.0,0.3639789]
[1745902123587,0.2024769,94476.0,94475.0,0.1735]
[1745902124291,0.30279815,94476.0,94475.0,0.1735]
[1745902124481,0.3026769,94476.0,94475.0,0.3639789]
[1745902125292,0.3026769,94476.0,94475.0,0.1735]
[1745902125485,1.18776491,94476.0,94475.0,0.03122913]
[1745902125888,0.2024769,94476.0,94475.0,0.22170803]
[1745902126484,0.2024769,94476.0,94475.0,0.35170803]
[1745902126687,0.2024769,94476.0,94475.0,0.45020803]
[1745902126889,0.2024769,94476.0,94475.0,0.32020803]
[1745902127989,0.20257553,94476.0,94475.0,0.32020803]
[1745902128292,0.012,94476.0,94475.0,0.32020803]
[1745902128492,0.2024769,94476.0,94475.0,0.45020803]
[1745902129995,0.2024769,94476.0,94475.0,0.32020803]
[1745902130593,0.012,94476.0,94475.0,0.32020803]
[1745902130784,0.2024769,94476.0,94475.0,0.46020803]
[1745902131698,0.2024769,94476.0,94475.0,0.32020803]
[1745902131899,0.2024769,94476.0,94475.0,0.45020803]
[1745902132101,0.2024769,94476.0,94475.0,0.32020803]
[1745902132401,0.2024769,94476.0,94475.0,0.45020803]
[1745902132887,0.2025931,94476.0,94475.0,0.45020803]
[1745902133086,0.2024769,94476.0,94475.0,0.45020803]
[1745902133786,0.2024769,94476.0,94475.0,0.32020803]
[1745902140698,0.2025848,94476.0,94475.0,0.32020803]
[1745902140898,0.2024769,94476.0,94475.0,0.32020803]
[1745902141394,0.2512769,94476.0,94475.0,0.32020803]
[1745902141595,0.2024769,94476.0,94475.0,0.08072913]
[1745902141794,0.2512769,94476.0,94475.0,0.03122913]
[1745902142004,0.35712491,94476.0,94475.0,0.03122913]
[1745902142305,0.60712491,94476.0,94475.0,0.03122913]
[1745902142502,0.190489,94470.0,94469.0,0.00803173]
[1745902142698,0.190489,94470.0,94460.0,0.1904978]
[1745902142699,0.2381482,94461.0,94460.0,0.1904978]
[1745902142900,0.23826945,94461.0,94460.0,0.1904978]
[1745902143103,0.2381482,94461.0,94460.0,0.3104978]
[1745902143303,0.2381482,94461.0,94460.0,0.4079978]
[1745902143505,0.5989482,94461.0,94460.0,0.4079978]
[1745902143703,0.5513192,94461.0,94460.0,0.5379978]
[1745902144004,0.1905192,94461.0,94460.0,0.54594986]
[1745902144213,0.5513192,94461.0,94460.0,0.30795206]
[1745902144502,0.5513192,94461.0,94460.0,0.49846126]
[1745902144703,0.5533192,94461.0,94460.0,0.49846126]
[1745902145096,0.6561192,94461.0,94460.0,0.49846126]
[1745902145801,0.6571192,94461.0,94460.0,0.30795206]
[1745902145997,0.5563192,94461.0,94460.0,0.30795206]
[1745902146198,0.55642675,94461.0,94460.0,0.49846126]
[1745902146397,0.5573192,94461.0,94460.0,0.49946126]
[1745902146605,0.55740981,94461.0,94460.0,0.49946126]
[1745902146807,0.5573192,94461.0,94460.0,0.49946126]
[1745902147199,0.55743413,94461.0,94460.0,0.49946126]
[1745902147393,0.55742971,94461.0,94460.0,0.49946126]
[1745902147712,0.6061192,94461.0,94460.0,0.49946126]
[1745902147907,0.6591192,94461.0,94460.0,0.49946126]
[1745902149102,0.6591192,94461.0,94460.0,0.30895206]
[1745902149510,0.6591192,94461.0,94460.0,0.17895206]
[1745902149710,0.6591192,94461.0,94460.0,0.22905206]
[1745902151905,0.65924045,94461.0,94460.0,0.22905206]
[1745902152112,0.6591192,94461.0,94460.0,0.22905206]
[1745902152309,0.1965192,94461.0,94460.0,0.55956126]
[1745902154406,0.006,94461.0,94460.0,0.55956126]
[1745902155006,0.1965071,94461.0,94460.0,0.36905206]
[1745902155312,0.006,94461.0,94460.0,0.55956126]
[1745902156803,0.1965071,94461.0,94460.0,0.36905206]
[1745902162815,0.1965071,94461.0,94460.0,0.17895206]
[1745902163113,0.3602709,94461.0,94460.0,0.17895206]
[1745902163319,0.4606709,94461.0,94460.0,0.17895206]
[1745902166311,0.4103709,94461.0,94460.0,0.17895206]
[1745902166513,0.1697638,94461.0,94460.0,0.49946126]
[1745902167014,0.3602709,94461.0,94460.0,0.49946126]
[1745902167216,0.36037265,94461.0,94460.0,0.49946126]
[1745902167512,0.3602709,94461.0,94460.0,0.49946126]
[1745902168818,0.1965071,94461.0,94460.0,0.49946126]
[1745902169617,0.1965071,94461.0,94460.0,0.30895206]
[1745902171310,0.1965071,94461.0,94460.0,0.49946126]
[1745902171514,0.1965071,94461.0,94460.0,0.55106126]
[1745902171910,0.19659123,94461.0,94460.0,0.55106126]
[1745902172216,0.1965071,94461.0,94460.0,0.36055206]
[1745902172813,0.1965071,94461.0,94460.0,0.55106126]
[1745902173109,0.10755184,94465.0,94464.0,0.1905011]
[1745902173417,0.10755184,94465.0,94464.0,0.3205011]
[1745902173614,0.29805094,94465.0,94464.0,0.3205011]
[1745902174008,0.29805094,94465.0,94464.0,0.3716011]
[1745902174215,0.30205094,94465.0,94464.0,0.4926011]
[1745902174717,0.11155184,94465.0,94464.0,0.4926011]
[1745902175518,0.11355184,94465.0,94464.0,0.4926011]
[1745902177120,0.006,94465.0,94464.0,0.4926011]
[1745902178618,0.006,94465.0,94464.0,0.5984611]
[1745902179513,0.00609526,94465.0,94464.0,0.5984611]
[1745902179717,0.006,94465.0,94464.0,0.5984611]
[1745902182019,0.006,94465.0,94464.0,0.4926011]
[1745902182320,0.0476218,94471.0,94468.0,0.2381118]
[1745902182624,0.1401108,94471.0,94470.0,0.190489]
[1745902182827,0.0012108,94473.0,94470.0,0.3881108]
[1745902183024,0.190485,94473.0,94472.0,0.1904829]
[1745902183223,0.190485,94473.0,94472.0,0.3204829]
[1745902183424,0.190485,94473.0,94472.0,0.4224829]
[1745902184221,0.195485,94473.0,94472.0,0.5434829]
[1745902185331,0.195485,94473.0,94472.0,0.1705]
[1745902185623,0.198485,94473.0,94472.0,0.1705]
[1745902185823,0.198485,94473.0,94472.0,0.1695]
[1745902185824,0.194485,94473.0,94472.0,0.1695]